[Event "Vienna Chess Open 2019"]
[Site "Vienna"]
[Date "2019.08.17"]
[Round "1.4"]
[White "Janzelj, Tim"]
[Black "Hapala, Elisabeth"]
[Result "1-0"]
[ECO "D10"]
[WhiteElo "2435"]
[BlackElo "2131"]
[Annotator "NA"]
[PlyCount "101"]
[EventDate "2019.08.17"]
[EventType "swiss"]
[EventCountry "AUT"]
[SourceTitle "playchess.com"]
[Source "ChessBase"]
[SourceQuality "1"]
[TimeControl "40/5400+30:1800+30"]

1. d4 {[%emt 0:00:00]} d5 {[%emt 0:00:00]} 2. c4 {[%emt 0:00:00]} c6 {[%emt 0:00:00]} 3. Qb3 {[%emt 0:01:01]} dxc4 {[%emt 0:03:00]} 4. Qxc4 {[%emt 0:00:03]} Nf6 {[%emt 0:02:27]} 5. Nf3 {[%emt 0:00:15]} Bg4 {[%emt 0:01:49]} 6. e3 {[%emt 0:07:37]} Nbd7 {[%emt 0:05:44]} 7. Be2 {[%emt 0:02:04]} e6 {[%emt 0:00:34]} 8. h3 {[%emt 0:00:36]} Bh5 {[%emt 0:01:36]} 9. O-O {[%emt 0:00:22]} Be7 {[%emt 0:02:07]} 10. Rd1 {[%emt 0:03:12]} O-O {[%emt 0:01:03]} 11. Nc3 {[%emt 0:02:51]} Rc8 {[%emt 0:08:23]} 12. a4 {[%emt 0:10:39]} c5 {[%emt 0:16:59]} 13. Qb3 {[%emt 0:03:45]} cxd4 {[%emt 0:01:16]} 14. exd4 {[%emt 0:00:54]} Qc7 {[%emt 0:14:18]} 15. Bg5 {[%emt 0:02:08]} a6 {[%emt 0:02:28]} 16. a5 {[%emt 0:10:07]} Rfd8 {[%emt 0:09:34]} 17. Qa4 {[%emt 0:05:28]} Nb8 {[%emt 0:12:46]} 18. g4 {[%emt 0:05:33]} Bg6 {[%emt 0:00:27]} 19. Ne5 {[%emt 0:00:15]} Nc6 {[%emt 0:07:11]} 20. Nxc6 {[%emt 0:06:36]} Qxc6 {[%emt 0:00:33]} 21. Qxc6 {[%emt 0:00:46]} Rxc6 {[%emt 0:00:07]} 22. Bf3 {[%emt 0:12:23]} Rc7 {[%emt 0:00:26]} 23. d5 {[%emt 0:03:56]} Nxd5 {[%emt 0:02:43]} 24. Bxe7 {[%emt 0:01:23]} Rxe7 {[%emt 0:00:06]} 25. Nxd5 {[%emt 0:03:35]} exd5 {[%emt 0:00:05]} 26. Rxd5 {[%emt 0:00:11]} Rxd5 {[%emt 0:03:05]} 27. Bxd5 {[%emt 0:00:02]} h6 {[%emt 0:02:06]} 28. Rc1 {[%emt 0:04:43]} Kh7 {[%emt 0:00:47]} 29. f4 {[%emt 0:04:38]} f6 {[%emt 0:01:26]} 30. Kf2 {[%emt 0:00:26]} Bf7 {[%emt 0:00:16]} 31. Bf3 {[%emt 0:01:06]} Bb3 {[%emt 0:01:18]} 32. Rc8 {[%emt 0:03:21]} Ba4 {[%emt 0:00:47]} 33. Rb8 {[%emt 0:03:26]} Bc6 {[%emt 0:00:29]} 34. Bxc6 {[%emt 0:00:02]} bxc6 {[%emt 0:00:02]} 35. Rb6 {[%emt 0:00:08]} Re4 {[%emt 0:00:33]} 36. Rxc6 {[%emt 0:02:26]} Rxf4+ {[%emt 0:00:10]} 37. Kg3 {[%emt 0:00:38]} Rd4 {[%emt 0:01:11]} 38. Rxa6 {[%emt 0:00:54]} Rd3+ {[%emt 0:00:29]} 39. Kf4 {[%emt 0:00:07]} Rxh3 {[%emt 0:00:20]} 40. Rb6 {[%emt 0:00:43]} h5 {[%emt 0:00:46]} 41. gxh5 {[%emt 0:31:13]} Rxh5 {[%emt 0:19:29]} 42. b4 {[%emt 0:00:00]} Rh1 {[%emt 0:01:46]} 43. a6 {[%emt 0:00:00]} g5+ {[%emt 0:00:22]} 44. Ke3 {[%emt 0:00:00]} f5 {[%emt 0:02:34]} 45. Rb5 {[%emt 0:00:00]} f4+ {[%emt 0:01:14]} 46. Kf3 {[%emt 0:00:00]} Rh3+ {[%emt 0:03:55]} 47. Kg4 {[%emt 0:00:00]} Rg3+ {[%emt 0:00:31]} 48. Kh5 {[%emt 0:00:00]} f3 {[%emt 0:04:08]} 49. Rb7+ {[%emt 0:00:00]} Kg8 {[%emt 0:00:04]} 50. a7 {[%emt 0:00:00]} Rh3+ {[%emt 0:00:09]} 51. Kg6 {[%emt 0:00:00]} 1-0

[Event "Vienna Chess Open 2019"]
[Site "Vienna"]
[Date "2019.08.17"]
[Round "1.5"]
[White "Low, Kevin"]
[Black "Palac, Mladen"]
[Result "0-1"]
[ECO "B90"]
[WhiteElo "2153"]
[BlackElo "2551"]
[Annotator "ChessBase"]
[PlyCount "72"]
[EventDate "2019.08.17"]
[EventType "swiss"]
[EventCountry "AUT"]
[SourceTitle "playchess.com"]
[Source "ChessBase"]
[SourceQuality "1"]
[TimeControl "40/5400+30:1800+30"]

1. e4 {[%emt 0:00:00]} c5 {[%emt 0:00:00]} 2. Nf3 {[%emt 0:00:00]} d6 {[%emt 0:00:00]} 3. d4 {[%emt 0:00:00]} cxd4 {[%emt 0:00:00]} 4. Nxd4 {[%emt 0:00:01]} Nf6 {[%emt 0:00:00]} 5. Nc3 {[%emt 0:00:09]} a6 {[%emt 0:00:00]} 6. f3 {[%emt 0:00:10]} Qb6 {[%emt 0:00:42]} 7. Nb3 {[%emt 0:01:46]} e6 {[%emt 0:00:16]} 8. Bd3 {[%emt 0:13:50]} Be7 {[%emt 0:00:29]} 9. Qe2 {[%emt 0:01:19]} Qc7 {[%emt 0:00:05]} 10. a4 {[%emt 0:03:41]} b6 {[%emt 0:00:11]} 11. Be3 {[%emt 0:00:16]} Nc6 {[%emt 0:02:08]} 12. g4 {[%emt 0:07:10]} Bb7 {[%emt 0:01:24]} 13. O-O-O {[%emt 0:16:15]} Nb4 {[%emt 0:04:24]} 14. g5 {[%emt 0:10:18]} Nd7 {[%emt 0:00:17]} 15. Kb1 {[%emt 0:00:33]} O-O {[%emt 0:01:13]} 16. h4 {[%emt 0:01:23]} Nc5 {[%emt 0:03:54]} 17. Nxc5 {[%emt 0:09:16]} bxc5 {[%emt 0:00:02]} 18. h5 {[%emt 0:03:38]} d5 {[%emt 0:03:53]} 19. exd5 {[%emt 0:01:18]} exd5 {[%emt 0:00:01]} 20. Bf4 {[%emt 0:07:34]} Bd6 {[%emt 0:01:02]} 21. Bxd6 {[%emt 0:00:30]} Qxd6 {[%emt 0:00:02]} 22. Rdg1 {[%emt 0:10:07]} Rae8 {[%emt 0:24:18]} 23. Qd2 {[%emt 0:02:21]} Nxd3 {[%emt 0:02:39]} 24. Qxd3 {[%emt 0:01:22]} d4 {[%emt 0:00:32]} 25. Ne4 {[%emt 0:02:10]} Bxe4 {[%emt 0:02:59]} 26. fxe4 {[%emt 0:00:02]} Qe6 {[%emt 0:00:09]} 27. Re1 {[%emt 0:06:17]} Rb8 {[%emt 0:01:30]} 28. e5 {[%emt 0:01:27]} Rb4 {[%emt 0:01:31]} 29. b3 {[%emt 0:00:57]} Rfb8 {[%emt 0:04:04]} 30. Kc1 {[%emt 0:00:01]} c4 {[%emt 0:02:00]} 31. Qh3 {[%emt 0:01:01]} Qe7 {[%emt 0:04:11]} 32. Qf5 {[%emt 0:00:36]} cxb3 {[%emt 0:00:26]} 33. e6 {[%emt 0:00:09]} b2+ {[%emt 0:00:55]} 34. Kd2 {[%emt 0:00:02]} b1=Q {[%emt 0:00:40]} 35. h6 {[%emt 0:01:12]} fxe6 {[%emt 0:01:40]} 36. Rxe6 {[%emt 0:00:15]} Qf7 {[%emt 0:00:21]} 0-1

[Event "Vienna Chess Open 2019"]
[Site "Vienna"]
[Date "2019.08.17"]
[Round "1.5"]
[White "Stummer, Anton"]
[Black "Diermair, Andreas"]
[Result "1/2-1/2"]
[ECO "C47"]
[WhiteElo "2142"]
[BlackElo "2473"]
[Annotator "ChessBase"]
[PlyCount "108"]
[EventDate "2019.08.17"]
[EventType "swiss"]
[EventCountry "AUT"]
[SourceTitle "playchess.com"]
[Source "ChessBase"]
[SourceQuality "1"]
[TimeControl "40/5400+30:1800+30"]

1. e4 {[%emt 0:00:00]} e5 {[%emt 0:00:00]} 2. Nf3 {[%emt 0:00:00]} Nc6 {[%emt 0:00:00]} 3. Nc3 {[%emt 0:02:14]} Nf6 {[%emt 0:00:00]} 4. d4 {[%emt 0:00:21]} exd4 {[%emt 0:00:11]} 5. Nxd4 {[%emt 0:00:14]} Bc5 {[%emt 0:00:35]} 6. Be3 {[%emt 0:06:11]} Bb6 {[%emt 0:00:59]} 7. Nxc6 {[%emt 0:03:41]} bxc6 {[%emt 0:00:24]} 8. Bxb6 {[%emt 0:02:45]} axb6 {[%emt 0:00:16]} 9. Bd3 {[%emt 0:00:20]} d6 {[%emt 0:00:55]} 10. O-O {[%emt 0:01:00]} O-O {[%emt 0:00:28]} 11. h3 {[%emt 0:03:18]} Nd7 {[%emt 0:03:45]} 12. f4 {[%emt 0:01:09]} Nc5 {[%emt 0:00:22]} 13. Be2 {[%emt 0:03:22]} Qf6 {[%emt 0:02:41]} 14. Qd2 {[%emt 0:19:56]} b5 {[%emt 0:17:51]} 15. a3 {[%emt 0:00:36]} Na4 {[%emt 0:04:03]} 16. Nxa4 {[%emt 0:07:55]} Rxa4 {[%emt 0:00:06]} 17. c4 {[%emt 0:04:00]} bxc4 {[%emt 0:01:54]} 18. Qc2 {[%emt 0:07:26]} Ra5 {[%emt 0:04:08]} 19. Qxc4 {[%emt 0:02:37]} Qxb2 {[%emt 0:03:20]} 20. Qb4 {[%emt 0:00:18]} Qxb4 {[%emt 0:02:39]} 21. axb4 {[%emt 0:00:08]} Rxa1 {[%emt 0:00:09]} 22. Rxa1 {[%emt 0:00:07]} Bb7 {[%emt 0:05:11]} 23. Ra7 {[%emt 0:01:36]} Rb8 {[%emt 0:00:07]} 24. Kf2 {[%emt 0:09:17]} Kf8 {[%emt 0:02:01]} 25. Ke3 {[%emt 0:00:15]} Ke7 {[%emt 0:02:50]} 26. Kd4 {[%emt 0:00:46]} Kd8 {[%emt 0:03:31]} 27. e5 {[%emt 0:05:52]} c5+ {[%emt 0:07:23]} 28. bxc5 {[%emt 0:00:18]} dxe5+ {[%emt 0:00:28]} 29. fxe5 {[%emt 0:04:38]} Bxg2 {[%emt 0:01:20]} 30. Bc4 {[%emt 0:00:22]} Rb4 {[%emt 0:07:19]} 31. Kc3 {[%emt 0:00:18]} Rb1 {[%emt 0:00:54]} 32. Bxf7 {[%emt 0:02:49]} Bxh3 {[%emt 0:00:21]} 33. Bd5 {[%emt 0:04:50]} Rc1+ {[%emt 0:04:32]} 34. Kb4 {[%emt 0:00:18]} Rd1 {[%emt 0:01:18]} 35. Bc6 {[%emt 0:01:53]} Rb1+ {[%emt 0:07:33]} 36. Kc3 {[%emt 0:00:51]} Rc1+ {[%emt 0:00:42]} 37. Kb4 {[%emt 0:00:08]} Rb1+ {[%emt 0:03:04]} 38. Kc3 {[%emt 0:00:08]} Bd7 {[%emt 0:01:34]} 39. Bd5 {[%emt 0:02:03]} Rc1+ {[%emt 0:01:50]} 40. Kd4 {[%emt 0:01:47]} Rd1+ {[%emt 0:01:36]} 41. Kc4 {[%emt 0:32:24]} Bb5+ {[%emt 0:41:35]} 42. Kxb5 {[%emt 0:00:07]} Rxd5 {[%emt 0:00:03]} 43. Kc6 {[%emt 0:00:00]} Rxe5 {[%emt 0:00:00]} 44. Ra8+ {[%emt 0:00:00]} Ke7 {[%emt 0:00:00]} 45. Rc8 {[%emt 0:00:00]} h5 {[%emt 0:00:00]} 46. Rxc7+ {[%emt 0:00:00]} Kf6 {[%emt 0:00:00]} 47. Rc8 {[%emt 0:00:00]} g5 {[%emt 0:00:00]} 48. Kd6 {[%emt 0:00:00]} Re1 {[%emt 0:00:00]} 49. Rf8+ {[%emt 0:00:00]} Kg6 {[%emt 0:00:00]} 50. c6 {[%emt 0:00:00]} Rd1+ {[%emt 0:00:00]} 51. Ke5 {[%emt 0:00:00]} Re1+ {[%emt 0:00:00]} 52. Kd6 {[%emt 0:00:00]} Rd1+ {[%emt 0:00:00]} 53. Ke6 {[%emt 0:00:00]} Re1+ {[%emt 0:00:00]} 54. Kd6 {[%emt 0:00:00]} Rd1+ {[%emt 0:00:00]} 1/2-1/2

[Event "Vienna Chess Open 2019"]
[Site "Vienna"]
[Date "2019.08.17"]
[Round "1.5"]
[White "Kunz, Andre"]
[Black "Froewis, Georg"]
[Result "0-1"]
[ECO "B01"]
[WhiteElo "2130"]
[BlackElo "2429"]
[Annotator "NA"]
[PlyCount "78"]
[EventDate "2019.08.17"]
[EventType "swiss"]
[EventCountry "AUT"]
[SourceTitle "playchess.com"]
[Source "ChessBase"]
[SourceQuality "1"]
[TimeControl "40/5400+30:1800+30"]

1. e4 {[%emt 0:00:00]} d5 {[%emt 0:00:00]} 2. exd5 {[%emt 0:00:00]} Qxd5 {[%emt 0:00:00]} 3. Nc3 {[%emt 0:00:16]} Qd6 {[%emt 0:00:00]} 4. d4 {[%emt 0:01:51]} Nf6 {[%emt 0:00:00]} 5. Nf3 {[%emt 0:01:41]} Nc6 {[%emt 0:00:00]} 6. Nb5 {[%emt 0:18:53]} Qd8 {[%emt 0:00:00]} 7. c4 {[%emt 0:08:15]} e6 {[%emt 0:00:05]} 8. Be2 {[%emt 0:05:53]} Bb4+ {[%emt 0:02:58]} 9. Bd2 {[%emt 0:04:40]} a6 {[%emt 0:00:16]} 10. Nc3 {[%emt 0:05:58]} O-O {[%emt 0:02:27]} 11. a3 {[%emt 0:01:27]} Be7 {[%emt 0:03:00]} 12. Bf4 {[%emt 0:08:54]} Bd6 {[%emt 0:10:03]} 13. Qd2 {[%emt 0:08:18]} Na5 {[%emt 0:04:35]} 14. Bxd6 {[%emt 0:04:57]} cxd6 {[%emt 0:00:18]} 15. Rd1 {[%emt 0:01:13]} Qc7 {[%emt 0:08:00]} 16. Qd3 {[%emt 0:02:06]} Bd7 {[%emt 0:00:10]} 17. b4 {[%emt 0:00:59]} Nxc4 {[%emt 0:00:49]} 18. Qxc4 {[%emt 0:02:48]} Qxc4 {[%emt 0:00:05]} 19. Bxc4 {[%emt 0:00:02]} Rfc8 {[%emt 0:00:12]} 20. Nd2 {[%emt 0:04:46]} d5 {[%emt 0:04:20]} 21. Nxd5 {[%emt 0:03:03]} exd5 {[%emt 0:00:07]} 22. Bb3 {[%emt 0:07:56]} Bb5 {[%emt 0:02:54]} 23. f3 {[%emt 0:01:39]} Re8+ {[%emt 0:00:19]} 24. Kf2 {[%emt 0:00:01]} Re2+ {[%emt 0:00:08]} 25. Kg1 {[%emt 0:04:45]} Rae8 {[%emt 0:00:08]} 26. h4 {[%emt 0:00:57]} R8e3 {[%emt 0:00:28]} 27. a4 {[%emt 0:01:24]} Bd7 {[%emt 0:00:55]} 28. Bc2 {[%emt 0:00:30]} Nh5 {[%emt 0:00:55]} 29. Nf1 {[%emt 0:00:42]} Rc3 {[%emt 0:00:19]} 30. Bd3 {[%emt 0:00:02]} Rb2 {[%emt 0:00:13]} 31. b5 {[%emt 0:00:49]} Nf4 {[%emt 0:00:09]} 32. Ne3 {[%emt 0:00:39]} Rxd3 {[%emt 0:00:53]} 33. Rxd3 {[%emt 0:00:02]} Nxd3 {[%emt 0:00:09]} 34. bxa6 {[%emt 0:00:29]} bxa6 {[%emt 0:00:08]} 35. Nxd5 {[%emt 0:00:59]} Rb1+ {[%emt 0:01:00]} 36. Kh2 {[%emt 0:00:02]} Rxh1+ {[%emt 0:00:08]} 37. Kxh1 {[%emt 0:00:02]} Bxa4 {[%emt 0:00:09]} 38. Nb6 {[%emt 0:00:35]} Bb5 {[%emt 0:00:14]} 39. Kg1 {[%emt 0:00:53]} a5 {[%emt 0:00:09]} 0-1

[Event "Vienna Chess Open 2019"]
[Site "Vienna"]
[Date "2019.08.17"]
[Round "1.6"]
[White "Nasuta, Grzegorz"]
[Black "Bonade, Massimo"]
[Result "1-0"]
[ECO "B23"]
[WhiteElo "2533"]
[BlackElo "2153"]
[Annotator "ChessBase"]
[PlyCount "59"]
[EventDate "2019.08.17"]
[EventType "swiss"]
[EventCountry "AUT"]
[SourceTitle "playchess.com"]
[Source "ChessBase"]
[SourceQuality "1"]
[TimeControl "40/5400+30:1800+30"]

1. e4 {[%emt 0:00:00]} c5 {[%emt 0:00:00]} 2. Nc3 {[%emt 0:00:08]} d6 {[%emt 0:00:00]} 3. d4 {[%emt 0:00:16]} cxd4 {[%emt 0:00:25]} 4. Qxd4 {[%emt 0:00:06]} a6 {[%emt 0:00:51]} 5. b3 {[%emt 0:00:10]} Nc6 {[%emt 0:00:06]} 6. Qd2 {[%emt 0:00:05]} e6 {[%emt 0:06:55]} 7. Bb2 {[%emt 0:00:21]} b5 {[%emt 0:00:15]} 8. O-O-O {[%emt 0:00:45]} Nf6 {[%emt 0:00:41]} 9. f3 {[%emt 0:00:06]} Be7 {[%emt 0:01:33]} 10. Kb1 {[%emt 0:00:33]} O-O {[%emt 0:03:52]} 11. g4 {[%emt 0:04:05]} b4 {[%emt 0:05:01]} 12. Na4 {[%emt 0:20:28]} Nd7 {[%emt 0:08:08]} 13. Qe3 {[%emt 0:23:55]} Qc7 {[%emt 0:04:46]} 14. f4 {[%emt 0:02:44]} Nc5 {[%emt 0:01:52]} 15. Nxc5 {[%emt 0:00:16]} dxc5 {[%emt 0:00:04]} 16. Nf3 {[%emt 0:00:07]} a5 {[%emt 0:03:53]} 17. Bb5 {[%emt 0:08:09]} Ba6 {[%emt 0:06:47]} 18. Bxc6 {[%emt 0:15:41]} Qxc6 {[%emt 0:00:06]} 19. Ne5 {[%emt 0:00:06]} Qb5 {[%emt 0:00:50]} 20. g5 {[%emt 0:01:42]} Rfd8 {[%emt 0:04:13]} 21. Rxd8+ {[%emt 0:07:04]} Rxd8 {[%emt 0:00:18]} 22. Re1 {[%emt 0:00:04]} Bf8 {[%emt 0:02:41]} 23. f5 {[%emt 0:06:15]} exf5 {[%emt 0:00:26]} 24. exf5 {[%emt 0:00:04]} Qb6 {[%emt 0:12:10]} 25. Qh3 {[%emt 0:04:32]} Bc8 {[%emt 0:08:08]} 26. Nxf7 {[%emt 0:00:56]} Rd2 {[%emt 0:04:00]} 27. g6 {[%emt 0:01:29]} h6 {[%emt 0:05:47]} 28. Qe3 {[%emt 0:00:48]} Rxh2 {[%emt 0:02:06]} 29. Qe5 {[%emt 0:00:26]} Rh5 {[%emt 0:05:41]} 30. Qd5 {[%emt 0:00:10]} 1-0

[Event "Vienna Chess Open 2019"]
[Site "Vienna"]
[Date "2019.08.17"]
[Round "1.6"]
[White "Balinov, Ilia"]
[Black "Scheckenbach, Franz"]
[Result "1-0"]
[ECO "E70"]
[WhiteElo "2467"]
[BlackElo "2138"]
[Annotator "ChessBase"]
[PlyCount "49"]
[EventDate "2019.08.17"]
[EventType "swiss"]
[EventCountry "AUT"]
[SourceTitle "playchess.com"]
[Source "ChessBase"]
[SourceQuality "1"]
[TimeControl "40/5400+30:1800+30"]

1. c4 {[%emt 0:00:00]} Nf6 {[%emt 0:00:00]} 2. Nc3 {[%emt 0:00:21]} g6 {[%emt 0:00:29]} 3. e4 {[%emt 0:00:11]} d6 {[%emt 0:00:18]} 4. d4 {[%emt 0:00:05]} Bg7 {[%emt 0:00:06]} 5. Bg5 {[%emt 0:00:05]} O-O {[%emt 0:01:22]} 6. f4 {[%emt 0:00:04]} c5 {[%emt 0:06:21]} 7. d5 {[%emt 0:00:05]} b5 {[%emt 0:01:38]} 8. cxb5 {[%emt 0:00:43]} a6 {[%emt 0:03:05]} 9. Qd2 {[%emt 0:05:24]} h6 {[%emt 0:07:22]} 10. Bh4 {[%emt 0:00:06]} axb5 {[%emt 0:03:05]} 11. Bxb5 {[%emt 0:00:07]} Qa5 {[%emt 0:06:56]} 12. e5 {[%emt 0:18:06]} dxe5 {[%emt 0:00:43]} 13. fxe5 {[%emt 0:00:04]} Qb4 {[%emt 0:16:25]} 14. Nf3 {[%emt 0:01:20]} Ne4 {[%emt 0:01:21]} 15. Nxe4 {[%emt 0:00:09]} Qxe4+ {[%emt 0:00:04]} 16. Kf2 {[%emt 0:00:26]} Bxe5 {[%emt 0:04:03]} 17. Rhe1 {[%emt 0:09:31]} Bd4+ {[%emt 0:00:32]} 18. Qxd4 {[%emt 0:22:22]} Qxe1+ {[%emt 0:03:06]} 19. Kxe1 {[%emt 0:00:41]} cxd4 {[%emt 0:00:09]} 20. Bxe7 {[%emt 0:00:22]} Bb7 {[%emt 0:04:50]} 21. Bxf8 {[%emt 0:00:17]} Kxf8 {[%emt 0:00:28]} 22. d6 {[%emt 0:00:39]} Bxf3 {[%emt 0:09:50]} 23. gxf3 {[%emt 0:00:05]} Na6 {[%emt 0:00:39]} 24. Rc1 {[%emt 0:05:57]} Nb4 {[%emt 0:01:33]} 25. a3 {[%emt 0:00:21]} 1-0

[Event "Vienna Chess Open 2019"]
[Site "Vienna"]
[Date "2019.08.17"]
[Round "1.6"]
[White "Ozen, Deniz"]
[Black "Leisenberger, Harald"]
[Result "1-0"]
[ECO "C65"]
[WhiteElo "2429"]
[BlackElo "2129"]
[Annotator "NA"]
[PlyCount "43"]
[EventDate "2019.08.17"]
[EventType "swiss"]
[EventCountry "AUT"]
[SourceTitle "playchess.com"]
[Source "ChessBase"]
[SourceQuality "1"]
[TimeControl "40/5400+30:1800+30"]

1. e4 {[%emt 0:00:00]} e5 {[%emt 0:00:00]} 2. Nf3 {[%emt 0:00:00]} Nc6 {[%emt 0:00:00]} 3. Bb5 {[%emt 0:00:00]} Nf6 {[%emt 0:00:00]} 4. d3 {[%emt 0:00:04]} Bc5 {[%emt 0:00:06]} 5. c3 {[%emt 0:00:59]} O-O {[%emt 0:00:15]} 6. O-O {[%emt 0:00:20]} Re8 {[%emt 0:00:19]} 7. Nbd2 {[%emt 0:09:18]} a6 {[%emt 0:03:52]} 8. Ba4 {[%emt 0:01:48]} Ba7 {[%emt 0:00:29]} 9. h3 {[%emt 0:03:49]} d6 {[%emt 0:12:05]} 10. Re1 {[%emt 0:00:19]} Bd7 {[%emt 0:02:23]} 11. Nf1 {[%emt 0:00:23]} Ne7 {[%emt 0:05:31]} 12. Bb3 {[%emt 0:03:02]} Ng6 {[%emt 0:01:11]} 13. Ng3 {[%emt 0:00:52]} Be6 {[%emt 0:13:35]} 14. Nf5 {[%emt 0:11:13]} Qd7 {[%emt 0:05:09]} 15. g4 {[%emt 0:05:07]} c6 {[%emt 0:13:54]} 16. Bg5 {[%emt 0:06:07]} d5 {[%emt 0:03:45]} 17. N3h4 {[%emt 0:18:35]} Rad8 {[%emt 0:12:35]} 18. Qc1 {[%emt 0:14:53]} dxe4 {[%emt 0:02:50]} 19. Bxf6 {[%emt 0:01:06]} Nf4 {[%emt 0:03:54]} 20. Bxd8 {[%emt 0:07:26]} Bxf2+ {[%emt 0:01:17]} 21. Kh2 {[%emt 0:00:11]} Nxd3 {[%emt 0:05:22]} 22. Qg5 {[%emt 0:02:12]} 1-0

[Event "Vienna Chess Open 2019"]
[Site "Vienna"]
[Date "2019.08.17"]
[Round "1.7"]
[White "Munoz Avila, Jose Luis"]
[Black "Shengelia, David"]
[Result "0-1"]
[ECO "A50"]
[WhiteElo "2151"]
[BlackElo "2523"]
[Annotator "ChessBase"]
[PlyCount "70"]
[EventDate "2019.08.17"]
[EventType "swiss"]
[EventCountry "AUT"]
[SourceTitle "playchess.com"]
[Source "ChessBase"]
[SourceQuality "1"]
[TimeControl "40/5400+30:1800+30"]

1. d4 {[%emt 0:00:00]} Nf6 {[%emt 0:00:00]} 2. c4 {[%emt 0:00:00]} b6 {[%emt 0:00:34]} 3. Nf3 {[%emt 0:00:46]} Bb7 {[%emt 0:00:14]} 4. g3 {[%emt 0:00:59]} g6 {[%emt 0:03:37]} 5. Bg2 {[%emt 0:00:06]} Bg7 {[%emt 0:00:04]} 6. O-O {[%emt 0:00:09]} O-O {[%emt 0:00:03]} 7. Re1 {[%emt 0:06:37]} Na6 {[%emt 0:10:27]} 8. Nc3 {[%emt 0:20:35]} Ne4 {[%emt 0:08:53]} 9. Nxe4 {[%emt 0:06:47]} Bxe4 {[%emt 0:00:06]} 10. Bd2 {[%emt 0:01:27]} c5 {[%emt 0:03:30]} 11. Bc3 {[%emt 0:01:54]} d5 {[%emt 0:09:22]} 12. Rc1 {[%emt 0:09:27]} dxc4 {[%emt 0:04:41]} 13. dxc5 {[%emt 0:00:50]} Bxc3 {[%emt 0:00:07]} 14. Rxc3 {[%emt 0:00:32]} b5 {[%emt 0:00:04]} 15. a4 {[%emt 0:05:56]} Qxd1 {[%emt 0:20:18]} 16. Rxd1 {[%emt 0:00:02]} Nxc5 {[%emt 0:00:05]} 17. axb5 {[%emt 0:01:17]} Na4 {[%emt 0:00:04]} 18. Rcc1 {[%emt 0:05:18]} Rab8 {[%emt 0:18:12]} 19. Rd7 {[%emt 0:05:00]} Nxb2 {[%emt 0:10:27]} 20. Rxe7 {[%emt 0:02:52]} Bxf3 {[%emt 0:00:03]} 21. Bxf3 {[%emt 0:00:18]} Rxb5 {[%emt 0:00:05]} 22. Rxa7 {[%emt 0:00:47]} Rc8 {[%emt 0:00:10]} 23. Ra8 {[%emt 0:07:42]} Rxa8 {[%emt 0:00:03]} 24. Bxa8 {[%emt 0:00:03]} Kf8 {[%emt 0:00:16]} 25. Rc2 {[%emt 0:00:52]} Ke7 {[%emt 0:00:36]} 26. e4 {[%emt 0:01:12]} Kd6 {[%emt 0:04:05]} 27. Kf1 {[%emt 0:00:24]} Kc5 {[%emt 0:00:14]} 28. Ke2 {[%emt 0:00:09]} Kd4 {[%emt 0:01:17]} 29. h4 {[%emt 0:03:20]} c3 {[%emt 0:01:27]} 30. Bd5 {[%emt 0:00:46]} Nd3 {[%emt 0:00:30]} 31. Bxf7 {[%emt 0:01:01]} Rb2 {[%emt 0:00:32]} 32. Kd1 {[%emt 0:00:31]} Nxf2+ {[%emt 0:00:44]} 33. Kc1 {[%emt 0:00:07]} Nd3+ {[%emt 0:00:05]} 34. Kd1 {[%emt 0:00:04]} Rb1+ {[%emt 0:00:05]} 35. Ke2 {[%emt 0:00:17]} Re1+ {[%emt 0:00:33]} 0-1

[Event "Vienna Chess Open 2019"]
[Site "Vienna"]
[Date "2019.08.17"]
[Round "1.7"]
[White "Wuethrich, Lorenz"]
[Black "Blohberger, Felix"]
[Result "0-1"]
[ECO "E00"]
[WhiteElo "2138"]
[BlackElo "2467"]
[Annotator "ChessBase"]
[PlyCount "110"]
[EventDate "2019.08.17"]
[EventType "swiss"]
[EventCountry "AUT"]
[SourceTitle "playchess.com"]
[Source "ChessBase"]
[SourceQuality "1"]
[TimeControl "40/5400+30:1800+30"]

1. d4 {[%emt 0:00:00]} e6 {[%emt 0:00:41]} 2. c4 {[%emt 0:00:00]} Bb4+ {[%emt 0:00:38]} 3. Bd2 {[%emt 0:00:01]} a5 {[%emt 0:01:13]} 4. e4 {[%emt 0:02:18]} d6 {[%emt 0:01:06]} 5. a3 {[%emt 0:02:53]} Bxd2+ {[%emt 0:00:06]} 6. Qxd2 {[%emt 0:00:23]} e5 {[%emt 0:00:58]} 7. dxe5 {[%emt 0:04:34]} dxe5 {[%emt 0:00:15]} 8. Nf3 {[%emt 0:00:20]} f6 {[%emt 0:09:58]} 9. h3 {[%emt 0:04:03]} Qxd2+ {[%emt 0:05:19]} 10. Kxd2 {[%emt 0:03:25]} Nd7 {[%emt 0:04:30]} 11. Nc3 {[%emt 0:01:14]} Nc5 {[%emt 0:01:06]} 12. Rd1 {[%emt 0:01:21]} a4 {[%emt 0:03:49]} 13. Nd5 {[%emt 0:01:37]} Kd8 {[%emt 0:01:31]} 14. Ke3 {[%emt 0:03:00]} Bd7 {[%emt 0:00:43]} 15. Be2 {[%emt 0:04:52]} Ne7 {[%emt 0:02:41]} 16. Nh4 {[%emt 0:06:36]} Nc8 {[%emt 0:04:39]} 17. Bg4 {[%emt 0:17:12]} c6 {[%emt 0:11:41]} 18. Nc3 {[%emt 0:01:37]} Nb6 {[%emt 0:01:26]} 19. Be2 {[%emt 0:02:17]} Kc7 {[%emt 0:01:03]} 20. Nf3 {[%emt 0:03:32]} Be6 {[%emt 0:00:43]} 21. Nd2 {[%emt 0:00:15]} Rhd8 {[%emt 0:03:21]} 22. Rc1 {[%emt 0:01:07]} Rxd2 {[%emt 0:02:25]} 23. Kxd2 {[%emt 0:00:12]} Nb3+ {[%emt 0:00:06]} 24. Kc2 {[%emt 0:07:32]} Nxc1 {[%emt 0:00:18]} 25. Rxc1 {[%emt 0:00:06]} Nxc4 {[%emt 0:04:13]} 26. Rd1 {[%emt 0:02:36]} Nd6 {[%emt 0:03:38]} 27. Rd2 {[%emt 0:01:27]} b5 {[%emt 0:00:14]} 28. Bg4 {[%emt 0:01:58]} Bb3+ {[%emt 0:00:39]} 29. Kc1 {[%emt 0:00:12]} g6 {[%emt 0:00:35]} 30. Bd1 {[%emt 0:00:32]} Bc4 {[%emt 0:02:08]} 31. Bc2 {[%emt 0:01:02]} Bf1 {[%emt 0:02:44]} 32. f3 {[%emt 0:01:01]} Rd8 {[%emt 0:08:08]} 33. Rf2 {[%emt 0:00:24]} Bc4 {[%emt 0:00:07]} 34. g3 {[%emt 0:01:32]} Be6 {[%emt 0:01:05]} 35. h4 {[%emt 0:02:29]} Nc4 {[%emt 0:01:54]} 36. Re2 {[%emt 0:01:09]} Rd6 {[%emt 0:04:56]} 37. Nd1 {[%emt 0:00:59]} Na5 {[%emt 0:01:40]} 38. Ne3 {[%emt 0:00:15]} Rd4 {[%emt 0:04:05]} 39. h5 {[%emt 0:03:47]} Nb3+ {[%emt 0:11:04]} 40. Bxb3 {[%emt 0:00:05]} Bxb3 {[%emt 0:00:06]} 41. hxg6 {[%emt 0:30:09]} hxg6 {[%emt 0:30:08]} 42. Rd2 {[%emt 0:00:22]} Kd6 {[%emt 0:00:00]} 43. Ng4 {[%emt 0:00:00]} Ke6 {[%emt 0:00:00]} 44. Rxd4 {[%emt 0:00:00]} exd4 {[%emt 0:00:00]} 45. f4 {[%emt 0:00:00]} c5 {[%emt 0:00:00]} 46. Nf2 {[%emt 0:00:00]} Bc4 {[%emt 0:00:00]} 47. Kd2 {[%emt 0:00:00]} b4 {[%emt 0:00:00]} 48. Nd3 {[%emt 0:00:00]} Bxd3 {[%emt 0:00:00]} 49. Kxd3 {[%emt 0:00:00]} bxa3 {[%emt 0:00:00]} 50. bxa3 {[%emt 0:00:00]} Kd6 {[%emt 0:00:00]} 51. Kc4 {[%emt 0:00:00]} Kc6 {[%emt 0:00:00]} 52. Kd3 {[%emt 0:00:00]} Kb5 {[%emt 0:00:00]} 53. g4 {[%emt 0:00:00]} Kc6 {[%emt 0:00:00]} 54. g5 {[%emt 0:02:19]} fxg5 {[%emt 0:00:00]} 55. f5 {[%emt 0:00:15]} gxf5 {[%emt 0:00:00] Kxd4} 0-1